bitfinex/quotes_BTCUSD_20241009
["timestamp","ask_amount","ask_price","bid_price","bid_amount"]
[1728516763936,0.0170526,60693.0,60692.0,1.17944619]
[1728516764158,0.0170526,60693.0,60692.0,1.17948619]
[1728516768890,0.0170526,60693.0,60692.0,1.20748619]
[1728516769129,0.001636,60693.0,60692.0,2.66464619]
[1728516769809,0.001636,60693.0,60692.0,1.20748619]
[1728516770027,0.001636,60693.0,60692.0,2.93153219]
[1728516770465,0.001636,60693.0,60692.0,2.94053219]
[1728516771838,0.001636,60693.0,60692.0,2.94853219]
[1728516772994,0.05096236,60706.0,60703.0,0.329473]
[1728516773221,0.001636,60706.0,60705.0,0.51250636]
[1728516773448,0.001636,60706.0,60705.0,1.19619]
[1728516773659,0.001636,60706.0,60705.0,1.174604]
[1728516773877,0.001636,60706.0,60705.0,1.23841302]
[1728516776082,0.001636,60706.0,60705.0,1.24741302]
[1728516776332,0.001636,60706.0,60705.0,1.25641302]
[1728516777054,0.001636,60706.0,60705.0,1.26141302]
[1728516780228,0.001636,60706.0,60705.0,1.26800302]
[1728516780481,0.001636,60706.0,60705.0,1.27662702]
[1728516782115,0.001636,60706.0,60705.0,0.73119166]
[1728516782333,0.001636,60706.0,60705.0,0.85466702]
[1728516782551,0.001636,60706.0,60705.0,0.84807702]
[1728516785380,0.001636,60706.0,60705.0,1.09428743]
[1728516785596,0.001636,60706.0,60705.0,2.61686625]
[1728516785830,0.001634,60714.0,60710.0,0.005]
[1728516786109,0.001634,60714.0,60713.0,0.59528436]
[1728516786324,0.001634,60714.0,60713.0,0.756122]
[1728516787888,0.001634,60714.0,60713.0,0.757122]
[1728516788096,0.001634,60714.0,60713.0,0.82093102]
[1728516788927,0.001634,60714.0,60713.0,0.82293102]
[1728516791682,0.001634,60714.0,60713.0,2.07537702]
[1728516792541,0.001634,60714.0,60713.0,2.07337702]
[1728516793408,0.001634,60714.0,60713.0,2.08404401]
[1728516793866,0.001634,60714.0,60713.0,2.09604401]
[1728516794280,0.001634,60714.0,60713.0,2.08304401]
[1728516794485,0.001634,60714.0,60713.0,2.09504401]
[1728516794690,0.001634,60714.0,60713.0,2.10904401]
[1728516795127,0.001634,60714.0,60713.0,2.09504401]
[1728516795542,0.001634,60714.0,60713.0,2.10904401]
[1728516795751,0.001634,60714.0,60713.0,1.82523601]
[1728516795961,0.001634,60714.0,60713.0,1.39355401]
[1728516803473,0.001634,60714.0,60713.0,1.15629301]
[1728516804538,0.001634,60714.0,60713.0,1.50455201]
[1728516804748,0.001634,60714.0,60713.0,1.49333001]
[1728516818065,0.001634,60714.0,60713.0,1.99333001]
[1728516818720,0.001634,60714.0,60713.0,1.20852265]
[1728516818933,0.001634,60714.0,60713.0,1.93350501]
[1728516819142,0.001634,60714.0,60713.0,1.75710001]
[1728516820079,0.001634,60714.0,60713.0,1.78010001]
[1728516820317,0.001634,60714.0,60713.0,1.76737401]
[1728516820538,0.001634,60714.0,60713.0,1.70178601]
[1728516826187,0.001634,60714.0,60713.0,1.95728701]
[1728516837854,0.001634,60714.0,60713.0,2.18474201]
[1728516838267,0.001634,60714.0,60713.0,2.06126665]
[1728516838451,0.001634,60714.0,60713.0,1.14949801]
[1728516838927,0.01703761,60714.0,60713.0,1.14949801]
[1728516839974,0.01703761,60714.0,60713.0,1.17249801]
[1728516842401,0.01703218,60714.0,60713.0,1.17249801]
[1728516842609,0.001634,60714.0,60713.0,1.17249801]
[1728516844958,0.001634,60714.0,60713.0,1.27509801]
[1728516845809,0.001634,60714.0,60713.0,1.96231701]
[1728516846314,0.001634,60714.0,60713.0,1.96731701]
[1728516847207,0.001634,60714.0,60713.0,1.96931701]
[1728516847846,0.001634,60714.0,60713.0,1.96731701]
[1728516850613,0.001634,60714.0,60713.0,1.35779801]
[1728516851042,0.001634,60714.0,60713.0,3.01483401]
[1728516851283,0.001634,60714.0,60713.0,2.68350101]
[1728516852418,0.001634,60714.0,60713.0,2.41696101]
[1728516852627,0.001634,60714.0,60713.0,2.17873201]
[1728516853472,0.001634,60714.0,60713.0,2.12098801]
[1728516860677,0.00153861,60714.0,60713.0,2.12098801]
[1728516862986,0.00153861,60714.0,60713.0,2.16457601]
[1728516863610,0.00153861,60714.0,60713.0,2.10683201]
[1728516870189,0.00153861,60714.0,60713.0,2.10183201]
[1728516870428,0.00153861,60714.0,60713.0,2.10683201]
[1728516875548,0.00153861,60714.0,60713.0,2.10764901]
[1728516876594,0.0492916,60723.0,60722.0,0.164684]
[1728516876811,0.0492916,60723.0,60722.0,0.7286045]
[1728516876812,0.01541759,60723.0,60722.0,0.7286045]
[1728516877019,0.01541759,60723.0,60722.0,0.6214045]
[1728516878099,0.01541759,60723.0,60722.0,0.6274045]
[1728516878840,0.01541759,60723.0,60722.0,1.1274045]
[1728516879773,0.01541759,60723.0,60722.0,1.1324045]
[1728516882225,0.01541759,60723.0,60722.0,1.14097362]
[1728516883355,0.01541759,60723.0,60722.0,1.14919048]
[1728516883817,0.001634,60725.0,60724.0,0.264679]
[1728516884057,0.001634,60725.0,60724.0,0.54544116]
[1728516884273,0.01704183,60725.0,60724.0,0.54544116]
[1728516885972,0.01704183,60725.0,60724.0,0.54944116]
[1728516886190,0.01704183,60725.0,60724.0,0.55244116]
[1728516886611,0.01704183,60725.0,60724.0,0.52944116]
[1728516887317,0.001634,60725.0,60724.0,0.52944116]
[1728516887536,0.01704167,60725.0,60724.0,0.52944116]
[1728516890755,0.001634,60725.0,60724.0,0.65291652]
[1728516890977,0.0663299,60725.0,60724.0,0.65291652]
[1728516892451,0.01704099,60725.0,60724.0,0.65291652]
[1728516893544,0.01704099,60725.0,60724.0,0.75931652]
[1728516893751,0.06634563,60725.0,60724.0,0.75931652]
[1728516894533,0.06634596,60725.0,60724.0,0.75931652]
[1728516895007,0.06634596,60725.0,60724.0,0.78231652]
[1728516898071,0.05093864,60725.0,60724.0,0.78231652]
[1728516898300,0.06634851,60725.0,60724.0,0.78231652]
[1728516901063,0.05093864,60725.0,60724.0,0.78231652]
[1728516901269,0.06635471,60725.0,60724.0,0.78231652]
[1728516904211,0.05093864,60725.0,60724.0,0.78231652]
[1728516904440,0.06635787,60725.0,60724.0,0.78231652]
[1728516906957,0.06637058,60725.0,60724.0,0.78231652]
[1728516908059,0.0663686,60725.0,60724.0,0.78231652]
[1728516908540,0.0663686,60725.0,60724.0,0.65291652]
[1728516908748,0.0663686,60725.0,60724.0,1.15291652]
[1728516908749,0.01705133,60725.0,60724.0,1.15291652]
[1728516908958,0.115686,60725.0,60724.0,1.15291652]
[1728516909177,0.19908417,60725.0,60724.0,1.15291652]
[1728516911615,0.19908417,60725.0,60724.0,0.507]
[1728516911616,0.37818417,60725.0,60724.0,0.507]
[1728516911828,0.74219582,60725.0,60724.0,0.507]
[1728516912054,0.594244,60725.0,60724.0,0.507]
[1728516912274,0.7606898,60725.0,60724.0,0.507]
[1728516912490,0.594244,60725.0,60724.0,0.507]
[1728516912702,0.76059407,60725.0,60724.0,0.507]
[1728516912919,0.76059407,60725.0,60724.0,0.5]
[1728516913134,0.76059407,60725.0,60724.0,0.501]
[1728516913350,0.599244,60725.0,60724.0,0.501]
[1728516913569,0.341103,60715.0,60714.0,0.000817]
[1728516913784,0.53855317,60715.0,60714.0,0.000817]
[1728516914021,0.68631199,60715.0,60714.0,0.000817]
[1728516914228,0.53855317,60715.0,60714.0,0.000817]
[1728516914450,0.53855317,60715.0,60703.0,0.25491751]
[1728516914451,0.164722,60708.0,60703.0,0.25491751]
[1728516914673,0.164722,60708.0,60703.0,0.41965251]
[1728516914674,0.34675472,60708.0,60703.0,0.41965251]
[1728516914887,0.36212234,60708.0,60704.0,0.164731]
[1728516915108,0.19740034,60708.0,60705.0,0.16473]
[1728516915324,0.19740034,60708.0,60706.0,0.164727]
[1728516915537,0.1968608,60708.0,60704.0,0.494197]
[1728516915751,0.1968608,60708.0,60704.0,0.164732]
[1728516915752,0.3615828,60708.0,60704.0,0.164732]
[1728516915974,0.19685365,60708.0,60705.0,0.16473]
[1728516916204,0.36657565,60708.0,60707.0,0.001817]
[1728516916421,0.19685365,60708.0,60707.0,0.000817]
[1728516916852,0.20885365,60708.0,60707.0,0.001817]
[1728516917582,0.19348603,60708.0,60707.0,0.002817]
[1728516917809,0.02733575,60708.0,60707.0,0.002817]
[1728516918238,0.19205775,60708.0,60707.0,0.002817]
[1728516918705,0.10098465,60708.0,60707.0,0.002817]
[1728516919135,0.26570665,60708.0,60707.0,0.002817]
[1728516919585,0.24114018,60708.0,60707.0,0.002817]
[1728516920595,0.19205775,60708.0,60707.0,0.002817]
[1728516921844,0.19203978,60708.0,60707.0,0.002817]
[1728516925174,0.02731778,60708.0,60707.0,0.002817]
[1728516925395,0.02730883,60708.0,60707.0,0.002817]
[1728516926856,0.19203083,60708.0,60707.0,0.002817]
[1728516928951,0.19203654,60708.0,60707.0,0.002817]
[1728516932568,0.176722,60708.0,60707.0,0.002817]
[1728516932837,0.02732084,60708.0,60707.0,0.002817]
[1728516935872,0.012,60708.0,60707.0,0.002817]
[1728516936110,0.02733706,60708.0,60707.0,0.002817]
[1728516937073,0.02733706,60708.0,60707.0,0.41063454]
[1728516937332,0.02733706,60708.0,60707.0,0.529355]
[1728516937826,0.012,60708.0,60707.0,0.529355]
[1728516938065,0.001634,60714.0,60707.0,0.529355]
[1728516938066,0.001634,60714.0,60707.0,0.36363]
[1728516938283,0.001634,60714.0,60713.0,0.28818436]
[1728516938497,0.01699579,60714.0,60713.0,0.28818436]
[1728516939365,0.01700541,60714.0,60713.0,0.28818436]
[1728516939577,0.001634,60714.0,60713.0,0.28818436]
[1728516940007,0.001634,60714.0,60713.0,0.43191756]
[1728516940225,0.01700539,60714.0,60713.0,0.43191756]
[1728516940789,0.02000539,60714.0,60713.0,0.43291756]
[1728516941109,0.02000539,60714.0,60713.0,0.43391756]
[1728516941768,0.02000539,60714.0,60713.0,0.7802552]
[1728516945679,0.02000539,60714.0,60713.0,0.9032552]
[1728516945963,0.004634,60714.0,60713.0,0.9032552]
[1728516946214,0.001634,60725.0,60713.0,0.9032552]
[1728516946215,0.001634,60725.0,60724.0,0.448379]
[1728516946474,0.001634,60725.0,60724.0,0.732692]
[1728516946966,0.001634,60725.0,60724.0,0.755692]
[1728516948115,0.005634,60725.0,60724.0,0.755692]
[1728516949519,0.005634,60725.0,60724.0,0.60921664]
[1728516949776,0.005634,60725.0,60724.0,0.65074984]
[1728516950000,0.005634,60725.0,60724.0,0.4899122]
[1728516950220,0.005634,60725.0,60724.0,0.3084122]
[1728516950438,0.02098639,60725.0,60724.0,0.3084122]
[1728516950887,0.02098639,60725.0,60724.0,0.31673471]
[1728516951099,0.02098639,60725.0,60724.0,0.3084122]
[1728516952209,0.005634,60725.0,60724.0,0.3084122]
[1728516952432,0.005634,60725.0,60724.0,0.46924984]
[1728516953102,0.02098046,60725.0,60724.0,0.46924984]
[1728516953339,0.02097993,60725.0,60724.0,0.46924984]
[1728516953847,0.005634,60725.0,60724.0,0.46924984]
[1728516955011,0.02097907,60725.0,60724.0,0.46924984]
[1728516956925,0.005634,60725.0,60724.0,0.46924984]
[1728516957157,0.02098141,60725.0,60724.0,0.46924984]
[1728516957627,0.005634,60725.0,60724.0,0.46924984]
[1728516958078,0.02098332,60725.0,60724.0,0.46924984]
[1728516961081,0.005634,60725.0,60724.0,0.57514984]
[1728516961296,0.005634,60725.0,60724.0,0.65744984]
[1728516961730,0.02098998,60725.0,60724.0,0.65744984]
[1728516962379,0.02098998,60725.0,60724.0,0.55154984]
[1728516962839,0.02098998,60725.0,60724.0,0.3084122]
[1728516966768,0.02101625,60725.0,60724.0,0.3084122]
[1728516970322,0.02103601,60725.0,60724.0,0.3084122]
[1728516972241,0.02103601,60725.0,60724.0,0.65522261]
[1728516972455,0.02103601,60725.0,60724.0,0.65274984]
[1728516973579,0.02105014,60725.0,60724.0,0.65274984]
[1728516980712,0.005634,60725.0,60724.0,0.65274984]
[1728516980931,0.0210589,60725.0,60724.0,0.65274984]
[1728516982088,0.0210589,60725.0,60724.0,0.67574984]
[1728516982533,0.07017371,60725.0,60724.0,0.67574984]
[1728516983901,0.07016989,60725.0,60724.0,0.67574984]
[1728516984696,0.02105508,60725.0,60724.0,0.67574984]
[1728516985582,0.0947273,60725.0,60724.0,0.67574984]
[1728516986921,0.0949809,60725.0,60724.0,0.67574984]
[1728516987175,0.005634,60725.0,60724.0,0.65274984]
[1728516987403,0.02105372,60725.0,60724.0,0.65274984]
[1728516987641,0.11928335,60725.0,60724.0,0.65274984]
[1728516988521,0.30123641,60725.0,60724.0,0.65274984]
[1728516988733,0.3016405,60725.0,60724.0,0.65274984]
[1728516989458,0.20304034,60725.0,60724.0,0.65274984]
[1728516989955,0.32629054,60725.0,60724.0,0.65274984]
[1728516991525,0.20304034,60725.0,60724.0,0.65274984]
[1728516993924,0.20304065,60725.0,60724.0,0.65274984]
[1728516995222,0.20304065,60725.0,60724.0,0.3084122]
[1728516997159,0.20304156,60725.0,60724.0,0.3084122]
[1728516997872,0.20304156,60725.0,60724.0,0.89026025]
[1728516998110,0.20304156,60725.0,60724.0,0.66704984]
[1728517001522,0.20304379,60725.0,60724.0,0.66704984]
[1728517003683,0.18762062,60725.0,60724.0,0.66704984]
[1728517003907,0.20304622,60725.0,60724.0,0.66704984]
[1728517004974,0.20304622,60725.0,60724.0,0.3084122]
[1728517005658,0.20304622,60725.0,60724.0,0.55462261]
[1728517005879,0.20304622,60725.0,60724.0,1.04320107]
[1728517006099,0.20304622,60725.0,60724.0,0.79699066]
[1728517007732,0.20304622,60725.0,60724.0,1.14320107]
[1728517007941,0.20304622,60725.0,60724.0,0.89699066]
[1728517007942,0.09510385,60725.0,60724.0,0.89699066]
[1728517009028,0.0210596,60725.0,60724.0,0.89699066]
[1728517009877,0.0210596,60725.0,60724.0,0.89899066]
[1728517010120,0.0170596,60725.0,60724.0,0.89899066]
[1728517010572,0.0170596,60725.0,60724.0,0.90099066]
[1728517011030,0.09110385,60725.0,60724.0,0.77784984]
[1728517011281,0.11575302,60725.0,60724.0,0.90099066]
[1728517011530,0.29790109,60725.0,60724.0,0.90099066]
[1728517014116,0.19920767,60725.0,60724.0,0.88099066]
[1728517014533,0.19921932,60725.0,60724.0,0.88099066]
[1728517017142,0.18379372,60725.0,60724.0,0.88099066]
[1728517017378,0.19921341,60725.0,60724.0,0.88099066]
[1728517017593,0.29790735,60725.0,60724.0,0.88099066]
[1728517020166,0.29790655,60725.0,60724.0,0.88099066]
[1728517021176,0.01705289,60725.0,60724.0,0.88099066]
[1728517022124,0.11574647,60725.0,60724.0,0.88099066]
[1728517022362,0.29790553,60725.0,60724.0,0.88099066]
[1728517023318,0.29790364,60725.0,60724.0,0.88099066]
[1728517024268,0.19921072,60725.0,60724.0,0.248679]
[1728517024772,0.39863715,60725.0,60724.0,0.148679]
[1728517025240,0.25059777,60725.0,60724.0,0.148679]
[1728517025718,0.39862571,60725.0,60724.0,0.144679]
[1728517026188,0.39962571,60725.0,60724.0,0.001]
[1728517026424,0.39862931,60725.0,60724.0,0.164679]
[1728517026656,0.39962931,60725.0,60724.0,0.165679]
[1728517026886,0.39962931,60725.0,60724.0,0.166679]
[1728517028570,0.20020963,60725.0,60724.0,0.166679]
[1728517028826,0.25159412,60725.0,60724.0,0.166679]
[1728517029081,0.20020963,60725.0,60724.0,0.166679]
[1728517029517,0.20020543,60725.0,60724.0,0.166679]
[1728517029744,0.20016381,60725.0,60724.0,0.166679]
[1728517030956,0.20016381,60725.0,60724.0,0.002]
[1728517031192,0.3995451,60725.0,60724.0,0.002817]
[1728517032881,0.5642211,60725.0,60724.0,0.002817]
[1728517033880,0.7433211,60725.0,60724.0,0.002817]
[1728517034126,0.7433211,60725.0,60719.0,0.24621041]
[1728517034127,0.329368,60723.0,60719.0,0.24621041]
[1728517034350,0.1479441,60721.0,60719.0,0.24621041]
[1728517034569,0.41359155,60722.0,60719.0,0.24621041]
[1728517034570,0.19752981,60720.0,60719.0,0.24621041]
[1728517034795,0.19752981,60720.0,60718.0,0.164694]
[1728517034940,0.19752981,60719.0,60718.0,0.164694]
[1728517036050,0.1973377,60719.0,60718.0,0.164694]
[1728517036267,0.1973377,60719.0,60717.0,0.164697]
[1728517036475,0.1973377,60718.0,60717.0,0.164697]
[1728517037590,0.13859197,60718.0,60717.0,0.164697]
[1728517037814,0.30510247,60718.0,60717.0,0.164697]
[1728517038041,0.3204921,60718.0,60717.0,0.164697]
[1728517038533,0.3204921,60718.0,60717.0,0.30092318]
[1728517039007,0.3214921,60718.0,60717.0,0.30092318]
[1728517039447,0.3214921,60718.0,60717.0,0.164697]
[1728517039677,0.3214921,60718.0,60715.0,0.00845897]
[1728517039889,0.29583467,60717.0,60716.0,0.164699]
[1728517041369,0.29583467,60717.0,60716.0,0.166699]
[1728517041980,0.295682,60717.0,60716.0,0.166699]
[1728517042822,0.295682,60717.0,60716.0,0.167699]
[1728517043479,0.08925131,60717.0,60716.0,0.50843664]
[1728517043706,0.06463297,60717.0,60716.0,0.63143664]
[1728517043922,0.06463297,60717.0,60716.0,0.75457746]
[1728517043923,0.01538963,60717.0,60716.0,0.75457746]
[1728517044149,0.0984967,60723.0,60721.0,0.164687]
[1728517044150,0.04924334,60722.0,60721.0,0.164687]
[1728517044394,0.04924334,60722.0,60721.0,0.65626546]
[1728517044395,0.01538972,60722.0,60721.0,0.65626546]
[1728517045514,0.01738972,60722.0,60721.0,0.65726546]
[1728517048836,0.002,60722.0,60721.0,0.65726546]
[1728517049054,0.01739254,60722.0,60721.0,0.72506261]
[1728517050664,0.01239254,60722.0,60721.0,0.72506261]
[1728517052499,0.01239254,60722.0,60721.0,0.41808415]
[1728517052731,0.06164133,60722.0,60721.0,0.23348415]
[1728517052941,0.08626,60722.0,60721.0,0.23348415]
[1728517055392,0.08626,60722.0,60721.0,0.23430115]
[1728517055609,0.07550146,60722.0,60721.0,0.23430115]
[1728517056741,0.07550146,60722.0,60721.0,0.001817]
[1728517056972,0.30659816,60722.0,60721.0,0.001817]
[1728517057413,0.18348572,60722.0,60721.0,0.001817]
[1728517059850,0.34816972,60722.0,60721.0,0.001817]
[1728517060081,0.164703,60715.0,60714.0,0.000817]
[1728517060324,0.59874053,60715.0,60714.0,0.000817]
[1728517060546,0.47559971,60715.0,60714.0,0.000817]
[1728517061426,0.59874053,60715.0,60714.0,0.001817]
[1728517061653,0.9308211,60715.0,60714.0,0.001817]
[1728517061885,0.76657817,60715.0,60714.0,0.002817]
[1728517062107,0.9328211,60715.0,60714.0,0.000817]
[1728517062326,0.9328211,60715.0,60714.0,0.001817]
[1728517062545,0.64343735,60715.0,60714.0,0.002817]
[1728517063273,0.39789971,60715.0,60714.0,0.002817]
[1728517063490,0.39771887,60715.0,60714.0,0.002817]
[1728517063923,0.39771887,60715.0,60714.0,0.001817]
[1728517064152,0.55233382,60715.0,60714.0,0.002817]
[1728517064373,0.55233382,60715.0,60714.0,0.001817]
[1728517064597,0.55933382,60715.0,60714.0,0.002817]
[1728517065559,0.41171887,60715.0,60714.0,0.002817]
[1728517067143,0.55931428,60715.0,60714.0,0.002817]
[1728517067791,0.5591854,60715.0,60714.0,0.002817]
[1728517071564,0.41162117,60715.0,60714.0,0.002817]
[1728517072490,0.36020524,60715.0,60714.0,0.002817]
[1728517073451,0.36019248,60715.0,60714.0,0.002817]
[1728517074926,0.19548948,60715.0,60707.0,0.000817]
[1728517075137,0.329424,60712.0,60710.0,0.24621041]
[1728517075346,0.46907752,60711.0,60708.0,0.11474804]
[1728517075550,0.27978225,60710.0,60708.0,0.11474804]
[1728517076427,0.07373313,60709.0,60708.0,0.11474804]
[1728517076850,0.18146595,60709.0,60708.0,0.11474804]
[1728517077064,0.1043163,60710.0,60708.0,0.11574804]
[1728517077290,0.1043163,60710.0,60709.0,0.0687546]
[1728517077496,0.27976436,60710.0,60709.0,0.0687546]
[1728517077954,0.27976436,60710.0,60709.0,0.3392746]
[1728517078180,0.27976436,60710.0,60709.0,0.4163746]
[1728517078404,0.18144806,60710.0,60709.0,0.4163746]
[1728517078901,0.0983163,60711.0,60709.0,0.4163746]
[1728517079612,0.007,60710.0,60709.0,0.4163746]
[1728517079855,0.18144806,60710.0,60709.0,0.4163746]
[1728517080091,0.27976436,60711.0,60709.0,0.4163746]
[1728517080306,0.28676436,60711.0,60709.0,0.2526546]
[1728517080527,0.0983163,60711.0,60709.0,0.2516546]
[1728517080747,0.27974359,60711.0,60709.0,0.4173736]
[1728517080967,0.0983163,60711.0,60709.0,0.2524716]
[1728517081209,0.0983163,60711.0,60709.0,0.4171916]
[1728517081442,0.1053163,60711.0,60709.0,0.4181916]
[1728517082118,0.10528199,60711.0,60710.0,0.164717]
[1728517082608,0.28667973,60711.0,60710.0,0.164717]
[1728517082841,0.28867973,60711.0,60710.0,0.164717]
[1728517083087,0.28867973,60711.0,60710.0,0.1275049]
[1728517083351,0.28867973,60711.0,60710.0,0.59302741]
[1728517083352,0.18839774,60711.0,60710.0,0.59302741]
[1728517083613,0.007,60711.0,60710.0,0.53463496]
[1728517083852,0.002,60711.0,60710.0,0.53563496]
[1728517084063,0.009,60711.0,60710.0,0.50221224]
[1728517084271,0.009,60711.0,60710.0,0.6900302]
[1728517084479,0.009,60711.0,60710.0,0.62537885]
[1728517084898,0.007,60711.0,60710.0,0.62437885]
[1728517085808,0.009,60711.0,60710.0,0.62437885]
[1728517086023,0.016,60711.0,60710.0,0.62537885]
[1728517094056,0.016,60711.0,60710.0,0.72537885]
[1728517096864,0.016,60711.0,60710.0,0.88621649]
[1728517100128,0.016,60711.0,60710.0,0.76304988]
[1728517100355,0.016,60711.0,60710.0,0.88621649]
[1728517102498,0.06515642,60711.0,60710.0,0.88621649]
[1728517103431,0.016,60711.0,60710.0,0.88621649]
[1728517103659,0.06525959,60711.0,60710.0,0.88621649]
[1728517104618,0.016,60711.0,60710.0,0.88621649]
[1728517105597,0.08973463,60711.0,60710.0,0.88621649]
[1728517107898,0.08990666,60711.0,60710.0,0.88621649]
[1728517116251,0.08990666,60711.0,60710.0,0.88703349]
[1728517117626,0.016,60711.0,60710.0,0.88703349]
[1728517120082,0.1979744,60711.0,60710.0,0.88703349]
[1728517120532,0.29651662,60711.0,60710.0,0.88703349]
[1728517120968,0.016,60711.0,60710.0,0.88703349]
[1728517122865,0.19801119,60711.0,60710.0,0.88703349]
[1728517123078,0.19801185,60711.0,60710.0,0.88703349]
[1728517123529,0.29662568,60711.0,60710.0,0.88703349]
[1728517127326,0.19801185,60711.0,60710.0,0.88703349]
[1728517128416,0.32127913,60711.0,60710.0,0.88703349]
[1728517129324,0.19801185,60711.0,60710.0,0.88703349]
[1728517136355,0.35884949,60711.0,60710.0,0.002817]
[1728517136581,0.35884949,60711.0,60707.0,0.000817]
[1728517136582,0.164722,60708.0,60707.0,0.000817]
[1728517136802,0.40314973,60708.0,60707.0,0.000817]
[1728517137696,0.56958422,60708.0,60707.0,0.000817]
[1728517138119,0.57558422,60708.0,60707.0,0.001817]
[1728517138329,0.40914973,60708.0,60707.0,0.001817]
[1728517139861,0.41814973,60708.0,60707.0,0.002817]
[1728517142632,0.41795854,60708.0,60707.0,0.002817]
[1728517143730,0.41789341,60708.0,60707.0,0.002817]
[1728517144170,0.41789342,60708.0,60707.0,0.002817]
[1728517146289,0.56553429,60708.0,60707.0,0.002817]
[1728517148314,0.56541112,60708.0,60707.0,0.002817]
[1728517148951,0.56541112,60708.0,60707.0,0.001917]
[1728517149396,0.56541112,60708.0,60707.0,0.001817]
[1728517149615,0.41778599,60708.0,60707.0,0.001817]
[1728517149831,0.41778599,60708.0,60707.0,0.001734]
[1728517150051,0.25302441,60708.0,60707.0,0.001734]
[1728517150279,0.25302441,60708.0,60707.0,0.001634]
[1728517150497,0.20160853,60708.0,60707.0,0.001634]
[1728517150723,0.19660853,60708.0,60707.0,0.06263366]
[1728517151155,0.36133053,60708.0,60707.0,0.06253366]
[1728517151368,0.36133053,60708.0,60707.0,0.000634]
[1728517151581,0.36133053,60708.0,60704.0,0.00858319]
[1728517151794,0.09838078,60706.0,60704.0,0.12316661]
[1728517152004,0.09838078,60706.0,60704.0,0.12306661]
[1728517152222,0.09838078,60706.0,60704.0,0.26019261]
[1728517152435,0.0737838,60705.0,60704.0,0.25959261]
[1728517152648,0.0737838,60705.0,60704.0,0.137226]
[1728517152858,0.0737838,60705.0,60704.0,0.301859]
[1728517153069,0.0737838,60705.0,60704.0,0.136926]
[1728517153284,0.07378215,60706.0,60704.0,0.301658]
[1728517153520,0.23851115,60706.0,60705.0,0.07291504]
[1728517153733,0.23851115,60706.0,60704.0,0.001]
[1728517153943,0.23851115,60706.0,60704.0,0.002]
[1728517154154,0.164731,60705.0,60704.0,0.001]
[1728517154366,0.08178215,60706.0,60704.0,0.001]
[1728517154606,0.23851315,60705.0,60704.0,0.002]
[1728517155020,0.23851315,60705.0,60704.0,0.001]
[1728517155443,0.24551315,60705.0,60704.0,0.002]
[1728517156342,0.171731,60705.0,60704.0,0.002]
[1728517156557,0.171731,60705.0,60704.0,0.001]
[1728517157001,0.178731,60705.0,60704.0,0.002]
[1728517160604,0.178731,60705.0,60704.0,0.002]
[1728517161425,0.014,60705.0,60704.0,0.18179354]
[1728517161680,0.19545014,60705.0,60704.0,0.18179354]
[1728517162196,0.19545014,60705.0,60704.0,0.18261054]
[1728517162393,0.19708414,60705.0,60704.0,0.100417]
[1728517163106,0.19708381,60705.0,60704.0,0.100417]
[1728517166507,0.36181481,60705.0,60704.0,0.100417]
[1728517167989,0.36184472,60705.0,60704.0,0.100417]
[1728517168409,0.37129828,60705.0,60704.0,0.100417]
[1728517169093,0.24839138,60705.0,60704.0,0.100417]
[1728517169697,0.24839138,60705.0,60704.0,0.26515]
[1728517169904,0.24839138,60705.0,60704.0,0.100417]
[1728517170325,0.37129828,60705.0,60704.0,0.100417]
[1728517171578,0.24839138,60705.0,60704.0,0.100417]
[1728517172414,0.37129828,60705.0,60704.0,0.100417]
[1728517173258,0.37142555,60705.0,60704.0,0.100417]
[1728517173691,0.53615655,60705.0,60704.0,0.100417]
[1728517173909,0.37142555,60705.0,60704.0,0.100417]
[1728517174776,0.24846726,60705.0,60704.0,0.100417]
[1728517174984,0.53618046,60705.0,60704.0,0.100417]
[1728517175189,0.37144946,60705.0,60704.0,0.100417]
[1728517175395,0.24846726,60705.0,60704.0,0.100417]
[1728517176228,0.41319826,60705.0,60704.0,0.100417]
[1728517176669,0.41319826,60705.0,60704.0,0.002817]
[1728517176891,0.164744,60701.0,60698.0,0.096117]
[1728517177107,0.35581094,60700.0,60698.0,0.096117]
[1728517177350,0.35581094,60699.0,60698.0,0.096117]
[1728517177781,0.35581094,60699.0,60698.0,0.22169008]
[1728517178231,0.35584517,60699.0,60698.0,0.22169008]
[1728517178746,0.35584517,60699.0,60698.0,0.38844008]
[1728517179237,0.23286523,60699.0,60698.0,0.22369008]
[1728517179481,0.28001642,60699.0,60698.0,0.38844008]
[1728517179728,0.28001642,60699.0,60698.0,0.46664008]
[1728517180229,0.28001642,60699.0,60698.0,0.46864008]
[1728517180454,0.18158757,60699.0,60698.0,0.46864008]
[1728517180680,0.12303607,60700.0,60699.0,0.164747]
[1728517181145,0.18168044,60701.0,60698.0,0.63338808]
[1728517181420,0.31231193,60704.0,60698.0,0.63338808]
[1728517181421,0.12309041,60699.0,60698.0,0.46864008]
[1728517181654,0.30477085,60699.0,60698.0,0.46864008]
[1728517181894,0.12309041,60699.0,60698.0,0.46664008]
[1728517182349,0.12309041,60699.0,60698.0,0.46464008]
[1728517182350,0.18168044,60699.0,60698.0,0.46464008]
[1728517183287,0.001,60700.0,60699.0,0.164747]
[1728517183509,0.18189544,60700.0,60699.0,0.37218157]
[1728517184463,0.18489544,60700.0,60699.0,0.37218157]
[1728517185895,0.18789544,60700.0,60699.0,0.37218157]
[1728517187231,0.18789544,60700.0,60699.0,0.37299857]
[1728517189837,0.006,60700.0,60699.0,0.37299857]
[1728517190047,0.18790197,60700.0,60699.0,0.37299857]
[1728517190270,0.18790197,60700.0,60699.0,0.47459857]
[1728517192689,0.18790197,60700.0,60699.0,0.71393621]
[1728517192970,0.0492829,60703.0,60702.0,0.023]
[1728517193177,0.07555836,60705.0,60704.0,0.287733]
[1728517193178,0.001634,60705.0,60704.0,0.287733]
[1728517193392,0.001634,60705.0,60704.0,0.62277064]
[1728517194660,0.001634,60705.0,60704.0,0.62577064]
[1728517194865,0.001634,60705.0,60704.0,0.7100386]
[1728517196033,0.001634,60705.0,60704.0,0.64936757]
[1728517196252,0.001634,60705.0,60704.0,0.52620096]
[1728517196461,0.001634,60705.0,60704.0,0.65336757]
[1728517196923,0.05085199,60705.0,60704.0,0.55466757]
[1728517197140,0.05085199,60705.0,60704.0,0.55066757]
[1728517197344,0.05485199,60705.0,60704.0,0.55066757]
[1728517197547,0.05285199,60705.0,60704.0,0.55066757]
[1728517197990,0.05885199,60705.0,60704.0,0.55166757]
[1728517198233,0.05285199,60705.0,60704.0,0.55066757]
[1728517198653,0.05485199,60705.0,60704.0,0.55066757]